[Event "Late-Titled-Tuesday-Blitz-June-25-2024"]
[Site "Chess.com"]
[Date "2024.06.25"]
[Round "2"]
[White "GothamChess"]
[Black "betta2004"]
[Result "1-0"]
[WhiteElo "2731"]
[BlackElo "2497"]
[TimeControl "180+1"]
[EndTime "14:18:46 PDT"]
[Termination "GothamChess won by resignation"]

1. b3 {[%clk 0:03:00.7]} 1... a5 {[%clk 0:02:53.4]} 2. a3 {[%clk 0:02:53.7]}
2... d5 {[%clk 0:02:38.8]} 3. Bb2 {[%clk 0:02:53.9]} 3... Nf6 {[%clk 0:02:38.8]}
4. e3 {[%clk 0:02:54.5]} 4... h6 {[%clk 0:02:38.3]} 5. f4 {[%clk 0:02:55]} 5...
Bf5 {[%clk 0:02:35.4]} 6. Nf3 {[%clk 0:02:55.2]} 6... e6 {[%clk 0:02:33.5]} 7.
Be2 {[%clk 0:02:50.9]} 7... Nbd7 {[%clk 0:02:31.7]} 8. h3 {[%clk 0:02:45.2]}
8... Bd6 {[%clk 0:02:30.7]} 9. g4 {[%clk 0:02:43.9]} 9... Bh7 {[%clk 0:02:25]}
10. d3 {[%clk 0:02:33.7]} 10... c6 {[%clk 0:02:22.5]} 11. Nbd2 {[%clk
0:02:29.2]} 11... Qb6 {[%clk 0:02:20.4]} 12. Nf1 {[%clk 0:02:28.5]} 12... a4
{[%clk 0:02:14.2]} 13. b4 {[%clk 0:02:26.9]} 13... Bxb4+ {[%clk 0:02:13.2]} 14.
Kf2 {[%clk 0:02:17]} 14... Bd6 {[%clk 0:02:03.5]} 15. Rb1 {[%clk 0:02:14.1]}
15... Qa7 {[%clk 0:01:57.7]} 16. Kg2 {[%clk 0:02:09.3]} 16... b5 {[%clk
0:01:53.6]} 17. Nd4 {[%clk 0:02:05.6]} 17... Qc7 {[%clk 0:01:51.9]} 18. Ng3
{[%clk 0:02:02.8]} 18... g5 {[%clk 0:01:47.5]} 19. fxg5 {[%clk 0:01:46.1]} 19...
Bxg3 {[%clk 0:01:41.8]} 20. gxf6 {[%clk 0:01:45.9]} 20... Bh4 {[%clk 0:01:41.4]}
21. Rh2 {[%clk 0:01:20.1]} 21... Qg3+ {[%clk 0:00:59.3]} 22. Kh1 {[%clk
0:01:20.4]} 22... Qxe3 {[%clk 0:01:00]} 23. Nxc6 {[%clk 0:01:17.3]} 23... Qc5
{[%clk 0:00:49.9]} 24. Nb4 {[%clk 0:01:11.7]} 24... Bxf6 {[%clk 0:00:46.3]} 25.
Bxf6 {[%clk 0:01:08.7]} 25... Nxf6 {[%clk 0:00:47.2]} 26. d4 {[%clk 0:01:02.6]}
26... Be4+ {[%clk 0:00:42.9]} 27. Kg1 {[%clk 0:01:02.5]} 27... Qc3 {[%clk
0:00:41.3]} 28. Bxb5+ {[%clk 0:01:02.3]} 28... Kf8 {[%clk 0:00:38.1]} 29. Bd3
{[%clk 0:00:56.6]} 29... Qxd4+ {[%clk 0:00:36.8]} 30. Rf2 {[%clk 0:00:56.9]}
30... Qe3 {[%clk 0:00:30]} 31. Qf1 {[%clk 0:00:28.9]} 31... Qg3+ {[%clk
0:00:28.7]} 32. Rg2 {[%clk 0:00:29.5]} 32... Bxg2 {[%clk 0:00:25.6]} 33. Qxg2
{[%clk 0:00:30.4]} 33... Qxg2+ {[%clk 0:00:17.6]} 34. Kxg2 {[%clk 0:00:31.3]}
34... Rc8 {[%clk 0:00:13.6]} 35. Bb5 {[%clk 0:00:25.1]} 35... Ke7 {[%clk
0:00:12.6]} 36. Nc6+ {[%clk 0:00:21.8]} 36... Kd6 {[%clk 0:00:13.2]} 37. Nd4
{[%clk 0:00:19.5]} 37... Ne4 {[%clk 0:00:12.7]} 38. Bxa4 {[%clk 0:00:18.9]}
38... Rc4 {[%clk 0:00:11.9]} 39. Nb5+ {[%clk 0:00:17.9]} 39... Kc5 {[%clk
0:00:11.3]} 40. Bb3 {[%clk 0:00:14.4]} 40... Kxb5 {[%clk 0:00:11.4]} 41. Bxc4+
{[%clk 0:00:11.9]} 41... Kxc4 {[%clk 0:00:12.3]} 42. Rb7 {[%clk 0:00:12.2]}
42... Rf8 {[%clk 0:00:09.6]} 43. h4 {[%clk 0:00:10.1]} 43... Kd4 {[%clk
0:00:09.8]} 44. a4 {[%clk 0:00:10]} 44... Kc3 {[%clk 0:00:08.5]} 45. a5 {[%clk
0:00:10.3]} 45... Kxc2 {[%clk 0:00:08.4]} 46. a6 {[%clk 0:00:11]} 46... Nc5
{[%clk 0:00:08.3]} 47. Rc7 {[%clk 0:00:11.2]} 47... Kd3 {[%clk 0:00:05.4]} 48.
Rxc5 {[%clk 0:00:11.4]} 48... Ra8 {[%clk 0:00:06]} 49. Ra5 {[%clk 0:00:11.3]}
49... d4 {[%clk 0:00:05]} 50. Kf3 {[%clk 0:00:12]} 50... Kc2 {[%clk 0:00:04.8]}
51. Ke4 {[%clk 0:00:11.9]} 51... d3 {[%clk 0:00:05.3]} 52. Ra2+ {[%clk
0:00:11.6]} 52... Kb3 {[%clk 0:00:05.7]} 53. Rd2 {[%clk 0:00:12.2]} 53... Rxa6
{[%clk 0:00:05.4]} 54. Rxd3+ {[%clk 0:00:12.8]} 54... Kc4 {[%clk 0:00:05.1]} 55.
Rd7 {[%clk 0:00:12.8]} 55... f5+ {[%clk 0:00:03.5]} 56. gxf5 {[%clk 0:00:12]}
56... exf5+ {[%clk 0:00:04.4]} 57. Kxf5 {[%clk 0:00:12.6]} 57... Kc5 {[%clk
0:00:05]} 58. h5 {[%clk 0:00:12.4]} 58... Rd6 {[%clk 0:00:03.4]} 59. Rc7+ {[%clk
0:00:10.6]} 59... Kd5 {[%clk 0:00:03.5]} 60. Re7 {[%clk 0:00:10.9]} 60... Rb6
{[%clk 0:00:03]} 61. Re5+ {[%clk 0:00:10.9]} 61... Kd4 {[%clk 0:00:03.1]} 62.
Re4+ {[%clk 0:00:10.5]} 62... Kd5 {[%clk 0:00:03.2]} 63. Re1 {[%clk 0:00:11.2]}
63... Kd4 {[%clk 0:00:03.1]} 64. Rg1 {[%clk 0:00:10.5]} 64... Kd5 {[%clk
0:00:02.4]} 65. Rg7 {[%clk 0:00:09.9]} 65... Rb8 {[%clk 0:00:03.1]} 66. Rd7+
{[%clk 0:00:10]} 66... Kc6 {[%clk 0:00:03]} 67. Rd1 {[%clk 0:00:10.1]} 67...
Rf8+ {[%clk 0:00:02.5]} 68. Kg6 {[%clk 0:00:10.5]} 68... Rf2 {[%clk 0:00:01.1]}
69. Kxh6 {[%clk 0:00:10.3]} 69... Rg2 {[%clk 0:00:02]} 70. Kh7 {[%clk 0:00:10]}
70... Kc7 {[%clk 0:00:02.2]} 71. Rd3 {[%clk 0:00:08.1]} 71... Kc6 {[%clk
0:00:02.1]} 72. Rd8 {[%clk 0:00:07.1]} 72... Kc7 {[%clk 0:00:03]} 73. Rg8 {[%clk
0:00:07.8]} 73... Rh2 {[%clk 0:00:02.7]} 74. Rg5 {[%clk 0:00:07.4]} 74... Kd7
{[%clk 0:00:02.9]} 75. Re5 {[%clk 0:00:08.1]} 75... Kd6 {[%clk 0:00:03.1]} 76.
Rg5 {[%clk 0:00:08.4]} 76... Ke6 {[%clk 0:00:02.8]} 77. Kg6 {[%clk 0:00:09.2]}
77... Ke7 {[%clk 0:00:01.7]} 78. Kg7 {[%clk 0:00:07.7]} 78... Ke8 {[%clk
0:00:01.4]} 79. h6 {[%clk 0:00:08.1]} 79... Ke7 {[%clk 0:00:01.9]} 80. h7 {[%clk
0:00:08.7]} 80... Ra2 {[%clk 0:00:02.1]} 81. h8=R {[%clk 0:00:08.1]} 81... Ra6
{[%clk 0:00:03]} 1-0

[Event "Late-Titled-Tuesday-Blitz-June-25-2024"]
[Site "Chess.com"]
[Date "2024.06.25"]
[Round "2"]
[White "Dyadya81"]
[Black "WPWPWP-2015"]
[Result "1/2-1/2"]
[WhiteElo "2779"]
[BlackElo "2553"]
[TimeControl "180+1"]
[EndTime "14:19:12 PDT"]
[Termination "Game drawn by repetition"]

1. e4 {[%clk 0:03:00.9]} 1... e5 {[%clk 0:02:58.7]} 2. Nf3 {[%clk 0:03:00.4]}
2... Nc6 {[%clk 0:02:58.2]} 3. d4 {[%clk 0:03:00.9]} 3... exd4 {[%clk
0:02:57.7]} 4. Nxd4 {[%clk 0:03:01.8]} 4... Nf6 {[%clk 0:02:57.7]} 5. Nc3 {[%clk
0:03:00.7]} 5... Bb4 {[%clk 0:02:55]} 6. Nxc6 {[%clk 0:03:00.4]} 6... bxc6
{[%clk 0:02:54]} 7. Bd3 {[%clk 0:03:00.6]} 7... d5 {[%clk 0:02:52.4]} 8. exd5
{[%clk 0:03:01.5]} 8... O-O {[%clk 0:02:51.8]} 9. O-O {[%clk 0:03:02]} 9... cxd5
{[%clk 0:02:51.5]} 10. h3 {[%clk 0:03:01.5]} 10... c6 {[%clk 0:02:51.5]} 11. Qf3
{[%clk 0:03:00.7]} 11... Be7 {[%clk 0:02:42]} 12. Bf4 {[%clk 0:03:00.9]} 12...
Be6 {[%clk 0:02:40.9]} 13. Rfe1 {[%clk 0:03:00.8]} 13... h6 {[%clk 0:02:39.6]}
14. Ne2 {[%clk 0:02:47.9]} 14... c5 {[%clk 0:02:37.6]} 15. c3 {[%clk 0:02:45]}
15... Qb6 {[%clk 0:02:35.7]} 16. Rab1 {[%clk 0:02:41.4]} 16... Rad8 {[%clk
0:02:27.6]} 17. Ng3 {[%clk 0:02:38.7]} 17... Rfe8 {[%clk 0:02:21.8]} 18. Re2
{[%clk 0:02:12.5]} 18... d4 {[%clk 0:02:13.2]} 19. c4 {[%clk 0:02:09.4]} 19...
Qa6 {[%clk 0:02:00]} 20. b3 {[%clk 0:02:08.4]} 20... Rd7 {[%clk 0:01:43.3]} 21.
Rbe1 {[%clk 0:02:05]} 21... Qb7 {[%clk 0:01:41.6]} 22. Ne4 {[%clk 0:01:55.8]}
22... Nxe4 {[%clk 0:01:39.4]} 23. Bxe4 {[%clk 0:01:55.8]} 23... Qa6 {[%clk
0:01:29.3]} 24. Bc6 {[%clk 0:01:52.6]} 24... Red8 {[%clk 0:01:29]} 25. Rxe6
{[%clk 0:01:29]} 25... fxe6 {[%clk 0:01:23.4]} 26. Rxe6 {[%clk 0:01:29.5]} 26...
Qxa2 {[%clk 0:01:07.1]} 27. Qe4 {[%clk 0:01:29.5]} 27... Bf8 {[%clk 0:01:01.9]}
28. Bxd7 {[%clk 0:01:15.8]} 28... Rxd7 {[%clk 0:01:02.8]} 29. Re8 {[%clk
0:01:13.5]} 29... Qa6 {[%clk 0:01:02]} 30. Re6 {[%clk 0:00:53.1]} 30... Qb7
{[%clk 0:00:57.7]} 31. Qd3 {[%clk 0:00:48.1]} 31... Rf7 {[%clk 0:00:54.5]} 32.
Bg3 {[%clk 0:00:46.6]} 32... Qd7 {[%clk 0:00:49.4]} 33. Ra6 {[%clk 0:00:44.1]}
33... Qb7 {[%clk 0:00:48.3]} 34. Ra1 {[%clk 0:00:38.3]} 34... Re7 {[%clk
0:00:45.6]} 35. Kh2 {[%clk 0:00:37.5]} 35... Qd7 {[%clk 0:00:43.8]} 36. Ra6
{[%clk 0:00:36.1]} 36... Rf7 {[%clk 0:00:40.7]} 37. Rg6 {[%clk 0:00:24.7]} 37...
Qf5 {[%clk 0:00:38.5]} 38. Qxf5 {[%clk 0:00:19.9]} 38... Rxf5 {[%clk 0:00:39.4]}
39. Rc6 {[%clk 0:00:17.4]} 39... Rf7 {[%clk 0:00:39]} 40. Kg1 {[%clk 0:00:12.9]}
40... Rb7 {[%clk 0:00:31.1]} 41. Rc8 {[%clk 0:00:11.6]} 41... Kf7 {[%clk
0:00:30.7]} 42. Rc7+ {[%clk 0:00:11.2]} 42... Rxc7 {[%clk 0:00:30.1]} 43. Bxc7
{[%clk 0:00:12.1]} 43... Ke6 {[%clk 0:00:26.7]} 44. Bb8 {[%clk 0:00:12.5]} 44...
a6 {[%clk 0:00:26.3]} 45. Kf1 {[%clk 0:00:12.8]} 45... Bd6 {[%clk 0:00:20.6]}
46. Ba7 {[%clk 0:00:12.9]} 46... Kd7 {[%clk 0:00:17.1]} 47. Bb6 {[%clk
0:00:13.4]} 47... Kc6 {[%clk 0:00:16.8]} 48. Ba5 {[%clk 0:00:11.8]} 48... Kd7
{[%clk 0:00:16.9]} 49. Ke2 {[%clk 0:00:11.9]} 49... Ke6 {[%clk 0:00:16.9]} 50.
Kd3 {[%clk 0:00:12.4]} 50... Be7 {[%clk 0:00:16.3]} 51. g4 {[%clk 0:00:11.8]}
51... g6 {[%clk 0:00:16.1]} 52. Ke4 {[%clk 0:00:12.1]} 52... Bf6 {[%clk
0:00:14.3]} 53. Bd2 {[%clk 0:00:11.6]} 53... h5 {[%clk 0:00:13.7]} 54. gxh5
{[%clk 0:00:09.6]} 54... gxh5 {[%clk 0:00:13.9]} 55. f4 {[%clk 0:00:10.5]} 55...
Bh4 {[%clk 0:00:09.8]} 56. f5+ {[%clk 0:00:10.8]} 56... Kd7 {[%clk 0:00:08.3]}
57. Kd5 {[%clk 0:00:10.5]} 57... Bf2 {[%clk 0:00:07.7]} 58. Kxc5 {[%clk
0:00:03]} 58... Be3 {[%clk 0:00:06.6]} 59. Be1 {[%clk 0:00:02.8]} 59... d3+
{[%clk 0:00:06.6]} 60. Kd5 {[%clk 0:00:02.9]} 60... d2 {[%clk 0:00:05.9]} 61.
Bxd2 {[%clk 0:00:03.5]} 61... Bxd2 {[%clk 0:00:06.3]} 62. c5 {[%clk 0:00:04.2]}
62... Bc3 {[%clk 0:00:04.5]} 63. Kc4 {[%clk 0:00:03.6]} 63... Bf6 {[%clk
0:00:04.1]} 64. Kd5 {[%clk 0:00:04.3]} 64... Bc3 {[%clk 0:00:04.1]} 65. Kc4
{[%clk 0:00:04.6]} 65... Bb2 {[%clk 0:00:02.5]} 66. b4 {[%clk 0:00:04.2]} 66...
Bf6 {[%clk 0:00:02.2]} 67. Kd5 {[%clk 0:00:04.7]} 67... Bc3 {[%clk 0:00:02.3]}
68. Kc4 {[%clk 0:00:05]} 68... Bf6 {[%clk 0:00:02.2]} 69. b5 {[%clk 0:00:05.9]}
69... axb5+ {[%clk 0:00:02.2]} 70. Kxb5 {[%clk 0:00:06.8]} 70... Kc7 {[%clk
0:00:02.8]} 71. Kc4 {[%clk 0:00:06.6]} 71... Kc6 {[%clk 0:00:03.2]} 72. Kb4
{[%clk 0:00:07.3]} 72... Bg7 {[%clk 0:00:03.6]} 73. Kc4 {[%clk 0:00:07.7]} 73...
Bf8 {[%clk 0:00:03.9]} 74. Kd4 {[%clk 0:00:06.7]} 74... Bxc5+ {[%clk 0:00:04.1]}
75. Ke4 {[%clk 0:00:07.6]} 75... Be7 {[%clk 0:00:04.2]} 76. Ke5 {[%clk
0:00:07.9]} 76... Kd7 {[%clk 0:00:04.5]} 77. f6 {[%clk 0:00:08.2]} 77... Bf8
{[%clk 0:00:04.9]} 78. Kf5 {[%clk 0:00:08.5]} 78... Ke8 {[%clk 0:00:05.2]} 79.
Kg5 {[%clk 0:00:09]} 79... h4 {[%clk 0:00:05.8]} 80. Kh5 {[%clk 0:00:09.7]}
80... Kf7 {[%clk 0:00:06.1]} 81. Kxh4 {[%clk 0:00:10.6]} 81... Kxf6 {[%clk
0:00:06.4]} 82. Kg4 {[%clk 0:00:11.5]} 82... Kg6 {[%clk 0:00:06.9]} 83. Kf3
{[%clk 0:00:12.4]} 83... Kh7 {[%clk 0:00:07.3]} 84. Kg2 {[%clk 0:00:13.3]} 84...
Bg7 {[%clk 0:00:07.8]} 85. Kh1 {[%clk 0:00:14.2]} 85... Bh8 {[%clk 0:00:08.3]}
86. Kg2 {[%clk 0:00:15.1]} 86... Bg7 {[%clk 0:00:09]} 87. Kh1 {[%clk 0:00:16]}
87... Bh8 {[%clk 0:00:09.5]} 88. Kg2 {[%clk 0:00:16.9]} 88... Bg7 {[%clk
0:00:10.1]} 1/2-1/2

[Event "Late-Titled-Tuesday-Blitz-June-25-2024"]
[Site "Chess.com"]
[Date "2024.06.25"]
[Round "3"]
[White "ChristopherYoo"]
[Black "Jarming"]
[Result "1-0"]
[WhiteElo "3027"]
[BlackElo "2706"]
[TimeControl "180+1"]
[EndTime "14:22:51 PDT"]
[Termination "ChristopherYoo won by resignation"]

1. e4 {[%clk 0:03:00.9]} 1... c5 {[%clk 0:02:53.1]} 2. Nf3 {[%clk 0:03:00.3]}
2... d6 {[%clk 0:02:53.6]} 3. d4 {[%clk 0:03:00.5]} 3... cxd4 {[%clk 0:02:54.5]}
4. Nxd4 {[%clk 0:03:01]} 4... Nf6 {[%clk 0:02:55.3]} 5. Nc3 {[%clk 0:03:01.1]}
5... g6 {[%clk 0:02:56.2]} 6. Be3 {[%clk 0:03:00.4]} 6... Bg7 {[%clk 0:02:56.8]}
7. f3 {[%clk 0:03:01.1]} 7... O-O {[%clk 0:02:57.5]} 8. Qd2 {[%clk 0:03:01.7]}
8... Nc6 {[%clk 0:02:58.3]} 9. O-O-O {[%clk 0:03:02.3]} 9... d5 {[%clk
0:02:58.9]} 10. Qe1 {[%clk 0:03:02.9]} 10... e5 {[%clk 0:02:58.9]} 11. Nxc6
{[%clk 0:03:02.7]} 11... bxc6 {[%clk 0:02:59.8]} 12. exd5 {[%clk 0:03:02.5]}
12... Nxd5 {[%clk 0:03:00.7]} 13. Bc4 {[%clk 0:03:02.7]} 13... Be6 {[%clk
0:03:01.3]} 14. Kb1 {[%clk 0:03:02.1]} 14... Qc7 {[%clk 0:02:59.7]} 15. Bb3
{[%clk 0:03:01.1]} 15... Rfd8 {[%clk 0:02:59.3]} 16. Ne4 {[%clk 0:03:00.4]}
16... h6 {[%clk 0:02:58.8]} 17. h4 {[%clk 0:02:59.9]} 17... f5 {[%clk
0:02:55.8]} 18. Nc5 {[%clk 0:02:56.1]} 18... Bf7 {[%clk 0:02:56.1]} 19. g4
{[%clk 0:02:55.2]} 19... Nxe3 {[%clk 0:02:50.7]} 20. Qxe3 {[%clk 0:02:54.2]}
20... fxg4 {[%clk 0:02:49.4]} 21. fxg4 {[%clk 0:02:52.4]} 21... Rd4 {[%clk
0:02:48.1]} 22. Rdf1 {[%clk 0:02:36.6]} 22... Rf8 {[%clk 0:02:38.1]} 23. Bxf7+
{[%clk 0:02:28.8]} 23... Rxf7 {[%clk 0:02:37.6]} 24. Ne6 {[%clk 0:02:28.7]}
24... Rxf1+ {[%clk 0:02:19]} 25. Rxf1 {[%clk 0:02:28.1]} 25... Qd6 {[%clk
0:02:10.1]} 26. Nxd4 {[%clk 0:02:26.9]} 26... exd4 {[%clk 0:02:11]} 27. Qe8+
{[%clk 0:02:26.4]} 27... Kh7 {[%clk 0:02:11]} 28. h5 {[%clk 0:02:26.2]} 28...
gxh5 {[%clk 0:02:07.4]} 29. gxh5 {[%clk 0:02:26.1]} 1-0

[Event "Late-Titled-Tuesday-Blitz-June-25-2024"]
[Site "Chess.com"]
[Date "2024.06.25"]
[Round "3"]
[White "Mikayel99"]
[Black "Seppppppy"]
[Result "0-1"]
[WhiteElo "2590"]
[BlackElo "2396"]
[TimeControl "180+1"]
[EndTime "14:23:07 PDT"]
[Termination "Seppppppy won by resignation"]

1. e4 {[%clk 0:02:56.8]} 1... e5 {[%clk 0:02:59.8]} 2. Nf3 {[%clk 0:02:55.4]}
2... Nc6 {[%clk 0:03:00.2]} 3. Bc4 {[%clk 0:02:53.8]} 3... Nf6 {[%clk
0:03:00.4]} 4. d3 {[%clk 0:02:52]} 4... Bc5 {[%clk 0:03:00.8]} 5. c3 {[%clk
0:02:51.3]} 5... O-O {[%clk 0:03:00.9]} 6. a4 {[%clk 0:02:50.9]} 6... a5 {[%clk
0:03:00.7]} 7. O-O {[%clk 0:02:50.8]} 7... d6 {[%clk 0:03:00.8]} 8. h3 {[%clk
0:02:50.2]} 8... Be6 {[%clk 0:03:01]} 9. Nbd2 {[%clk 0:02:44.7]} 9... Ba7 {[%clk
0:02:59.8]} 10. Qb3 {[%clk 0:02:39]} 10... Qd7 {[%clk 0:02:57.1]} 11. Re1 {[%clk
0:02:19.5]} 11... Bxh3 {[%clk 0:02:49.6]} 12. gxh3 {[%clk 0:01:35.1]} 12... Qxh3
{[%clk 0:02:50.5]} 13. Re3 {[%clk 0:01:25.7]} 13... Bxe3 {[%clk 0:02:40.5]} 14.
fxe3 {[%clk 0:01:26.6]} 14... Qg3+ {[%clk 0:02:38.5]} 15. Kh1 {[%clk 0:01:14.1]}
15... Ng4 {[%clk 0:02:39]} 0-1

[Event "Late-Titled-Tuesday-Blitz-June-25-2024"]
[Site "Chess.com"]
[Date "2024.06.25"]
[Round "3"]
[White "FloMasterAAK"]
[Black "KVAIDAN"]
[Result "1-0"]
[WhiteElo "2629"]
[BlackElo "2431"]
[TimeControl "180+1"]
[EndTime "14:23:17 PDT"]
[Termination "FloMasterAAK won by resignation"]

1. Nf3 {[%clk 0:03:00.9]} 1... f5 {[%clk 0:02:58.5]} 2. e4 {[%clk 0:03:00.2]}
2... fxe4 {[%clk 0:02:56.7]} 3. Ng5 {[%clk 0:03:00.2]} 3... Nf6 {[%clk
0:02:57.2]} 4. d3 {[%clk 0:03:00.1]} 4... d5 {[%clk 0:02:57.2]} 5. dxe4 {[%clk
0:02:59.3]} 5... h6 {[%clk 0:02:53.1]} 6. Nf3 {[%clk 0:02:55.2]} 6... Nxe4
{[%clk 0:02:50.3]} 7. Bd3 {[%clk 0:02:53.8]} 7... Bf5 {[%clk 0:02:49.7]} 8. Nh4
{[%clk 0:02:50.2]} 8... Bh7 {[%clk 0:02:48.9]} 9. Qh5+ {[%clk 0:02:49.2]} 9...
g6 {[%clk 0:02:46.6]} 10. Nxg6 {[%clk 0:02:44.6]} 10... Nf6 {[%clk 0:02:46.7]}
11. Qh3 {[%clk 0:02:36.5]} 11... Qd7 {[%clk 0:02:40.6]} 12. Nxh8 {[%clk
0:02:15.1]} 12... Qxh3 {[%clk 0:02:38.7]} 13. gxh3 {[%clk 0:02:16]} 13... Bxd3
{[%clk 0:02:31.2]} 14. cxd3 {[%clk 0:02:16.9]} 14... Nc6 {[%clk 0:02:27.9]} 15.
Ng6 {[%clk 0:02:15.9]} 15... Bg7 {[%clk 0:02:27.5]} 16. Nf4 {[%clk 0:02:03.8]}
16... Nb4 {[%clk 0:02:23.4]} 17. Na3 {[%clk 0:02:01.7]} 17... e5 {[%clk
0:02:23.5]} 18. Ne6 {[%clk 0:02:01.1]} 18... Kf7 {[%clk 0:02:17.6]} 19. Nxg7
{[%clk 0:01:57.6]} 19... Nxd3+ {[%clk 0:02:16.2]} 20. Ke2 {[%clk 0:01:55.9]}
20... Nxc1+ {[%clk 0:02:15.7]} 21. Raxc1 {[%clk 0:01:56.8]} 21... Kxg7 {[%clk
0:02:16.1]} 22. Rhg1+ {[%clk 0:01:55.2]} 22... Kf7 {[%clk 0:02:14.9]} 23. Rxc7+
{[%clk 0:01:55.7]} 23... Ke6 {[%clk 0:02:15.3]} 24. Rxb7 {[%clk 0:01:47.2]} 1-0

[Event "Late-Titled-Tuesday-Blitz-June-25-2024"]
[Site "Chess.com"]
[Date "2024.06.25"]
[Round "3"]
[White "HamedWafa4"]
[Black "cukricek"]
[Result "1-0"]
[WhiteElo "2778"]
[BlackElo "2502"]
[TimeControl "180+1"]
[EndTime "14:23:59 PDT"]
[Termination "HamedWafa4 won by checkmate"]

1. Nf3 {[%clk 0:03:00.9]} 1... Nf6 {[%clk 0:02:58.9]} 2. g3 {[%clk 0:02:58.7]}
2... g6 {[%clk 0:02:59.1]} 3. Bg2 {[%clk 0:02:58.5]} 3... Bg7 {[%clk 0:02:59.7]}
4. O-O {[%clk 0:02:59]} 4... O-O {[%clk 0:03:00.4]} 5. d4 {[%clk 0:02:58.6]}
5... c5 {[%clk 0:02:59.4]} 6. c3 {[%clk 0:02:53.3]} 6... d5 {[%clk 0:02:53.3]}
7. dxc5 {[%clk 0:02:47.1]} 7... Qc7 {[%clk 0:02:53.7]} 8. b4 {[%clk 0:02:46]}
8... a5 {[%clk 0:02:53.1]} 9. Bf4 {[%clk 0:02:43.6]} 9... Qd8 {[%clk 0:02:45]}
10. Nbd2 {[%clk 0:02:28.1]} 10... Ne4 {[%clk 0:02:34.8]} 11. Nxe4 {[%clk
0:02:22.6]} 11... dxe4 {[%clk 0:02:35.7]} 12. Qxd8 {[%clk 0:02:21.8]} 12... Rxd8
{[%clk 0:02:36.6]} 13. Ne5 {[%clk 0:02:22]} 13... f5 {[%clk 0:02:29.9]} 14. Rfd1
{[%clk 0:02:01.4]} 14... Rxd1+ {[%clk 0:02:20.6]} 15. Rxd1 {[%clk 0:02:02.3]}
15... Bxe5 {[%clk 0:02:17.9]} 16. Rd8+ {[%clk 0:01:55.7]} 16... Kf7 {[%clk
0:02:17.6]} 17. Rxc8 {[%clk 0:01:56.2]} 17... Bxf4 {[%clk 0:02:17.1]} 18. gxf4
{[%clk 0:01:57.1]} 18... axb4 {[%clk 0:02:15.8]} 19. cxb4 {[%clk 0:01:57.5]}
19... Ke6 {[%clk 0:02:16]} 20. e3 {[%clk 0:01:44]} 20... Kd7 {[%clk 0:02:15.2]}
21. Rh8 {[%clk 0:01:44.2]} 21... Kc7 {[%clk 0:02:15.6]} 22. b5 {[%clk
0:01:44.2]} 22... b6 {[%clk 0:02:10.4]} 23. cxb6+ {[%clk 0:01:42.5]} 23... Kb7
{[%clk 0:02:09.4]} 24. Rxh7 {[%clk 0:01:41.4]} 24... Rxa2 {[%clk 0:02:08.9]} 25.
Rxe7+ {[%clk 0:01:40.7]} 25... Kxb6 {[%clk 0:02:09.4]} 26. Bf1 {[%clk
0:01:41.1]} 26... Ra1 {[%clk 0:02:01.9]} 27. Re6+ {[%clk 0:01:39.8]} 27... Kc5
{[%clk 0:02:02.2]} 28. Rxg6 {[%clk 0:01:40]} 28... Nd7 {[%clk 0:02:02.4]} 29. h4
{[%clk 0:01:39.5]} 29... Ra8 {[%clk 0:01:56.1]} 30. Rc6+ {[%clk 0:01:35.6]}
30... Kd5 {[%clk 0:01:54.7]} 31. Bc4# {[%clk 0:01:35.4]} 1-0

[Event "Late-Titled-Tuesday-Blitz-June-25-2024"]
[Site "Chess.com"]
[Date "2024.06.25"]
[Round "3"]
[White "RaugintaBulba"]
[Black "MaestroCheck"]
[Result "0-1"]
[WhiteElo "2449"]
[BlackElo "2643"]
[TimeControl "180+1"]
[EndTime "14:23:59 PDT"]
[Termination "MaestroCheck won by resignation"]

1. d4 {[%clk 0:03:00.9]} 1... Nf6 {[%clk 0:02:56.8]} 2. c4 {[%clk 0:02:58.4]}
2... e6 {[%clk 0:02:56.3]} 3. Nf3 {[%clk 0:02:58.1]} 3... d5 {[%clk 0:02:55.8]}
4. g3 {[%clk 0:02:58.2]} 4... dxc4 {[%clk 0:02:54.6]} 5. Qa4+ {[%clk 0:02:56.3]}
5... Nbd7 {[%clk 0:02:52.8]} 6. Qxc4 {[%clk 0:02:56.8]} 6... a6 {[%clk
0:02:51.7]} 7. Bg2 {[%clk 0:02:55.8]} 7... c5 {[%clk 0:02:50.9]} 8. dxc5 {[%clk
0:02:49.2]} 8... Bxc5 {[%clk 0:02:48.8]} 9. O-O {[%clk 0:02:44.9]} 9... b5
{[%clk 0:02:48]} 10. Qb3 {[%clk 0:02:35.5]} 10... Bb7 {[%clk 0:02:47.9]} 11. Nc3
{[%clk 0:02:31.1]} 11... O-O {[%clk 0:02:41.2]} 12. Rd1 {[%clk 0:02:24.4]} 12...
Qb6 {[%clk 0:02:35.4]} 13. e3 {[%clk 0:02:23]} 13... Rfd8 {[%clk 0:02:33.2]} 14.
a4 {[%clk 0:02:18.9]} 14... b4 {[%clk 0:02:31.2]} 15. a5 {[%clk 0:02:19.1]}
15... Qa7 {[%clk 0:02:18.8]} 16. Na4 {[%clk 0:02:14.7]} 16... Bd5 {[%clk
0:02:18.8]} 17. Qc2 {[%clk 0:02:10.1]} 17... Rac8 {[%clk 0:02:18.9]} 18. Nxc5
{[%clk 0:02:09.3]} 18... Nxc5 {[%clk 0:02:17.6]} 19. Qe2 {[%clk 0:02:00.6]}
19... Nb3 {[%clk 0:02:13.8]} 20. Rb1 {[%clk 0:01:53.7]} 20... Be4 {[%clk
0:02:13]} 21. Bd2 {[%clk 0:01:17.4]} 21... Bxb1 {[%clk 0:02:10.8]} 22. Rxb1
{[%clk 0:01:18.3]} 22... Nxd2 {[%clk 0:02:10.2]} 23. Nxd2 {[%clk 0:01:15.6]}
23... Rc2 {[%clk 0:02:10.4]} 24. Rd1 {[%clk 0:01:12.3]} 24... Qd7 {[%clk
0:02:08.8]} 25. Qxa6 {[%clk 0:01:08.6]} 25... Rxd2 {[%clk 0:02:08]} 0-1

[Event "Late-Titled-Tuesday-Blitz-June-25-2024"]
[Site "Chess.com"]
[Date "2024.06.25"]
[Round "3"]
[White "farzadbfd"]
[Black "Jospem"]
[Result "0-1"]
[WhiteElo "2711"]
[BlackElo "3048"]
[TimeControl "180+1"]
[EndTime "14:24:02 PDT"]
[Termination "Jospem won by resignation"]

1. e4 {[%clk 0:03:00.9]} 1... c5 {[%clk 0:03:00]} 2. Nc3 {[%clk 0:03:00.8]} 2...
d6 {[%clk 0:02:59.5]} 3. g3 {[%clk 0:03:01.1]} 3... Nc6 {[%clk 0:02:59.6]} 4.
Bg2 {[%clk 0:03:01.6]} 4... e6 {[%clk 0:02:59.1]} 5. d3 {[%clk 0:03:02.4]} 5...
Nf6 {[%clk 0:02:59.7]} 6. Nge2 {[%clk 0:03:02.6]} 6... Be7 {[%clk 0:03:00.3]} 7.
O-O {[%clk 0:03:01.9]} 7... O-O {[%clk 0:03:01]} 8. h3 {[%clk 0:03:02]} 8... Rb8
{[%clk 0:03:00.8]} 9. Be3 {[%clk 0:03:02.2]} 9... b5 {[%clk 0:03:00.1]} 10. Qd2
{[%clk 0:03:02.8]} 10... b4 {[%clk 0:03:00.4]} 11. Nd1 {[%clk 0:03:03.4]} 11...
d5 {[%clk 0:02:59.7]} 12. f3 {[%clk 0:02:52]} 12... Ba6 {[%clk 0:02:58]} 13. a3
{[%clk 0:02:48.6]} 13... b3 {[%clk 0:02:54.8]} 14. c3 {[%clk 0:02:44]} 14... Ne5
{[%clk 0:02:54.7]} 15. Nf2 {[%clk 0:02:43]} 15... dxe4 {[%clk 0:02:55.2]} 16.
fxe4 {[%clk 0:02:10.4]} 16... Nxd3 {[%clk 0:02:52.6]} 17. Nxd3 {[%clk
0:02:01.3]} 17... Qxd3 {[%clk 0:02:53.5]} 18. Rfe1 {[%clk 0:01:45.5]} 18... Nxe4
{[%clk 0:02:38.1]} 19. Qxd3 {[%clk 0:01:42.2]} 19... Bxd3 {[%clk 0:02:39]} 20.
Nf4 {[%clk 0:01:40.1]} 20... Bc2 {[%clk 0:02:39.2]} 21. Kh2 {[%clk 0:01:14.7]}
21... Rfd8 {[%clk 0:02:38.5]} 22. Re2 {[%clk 0:01:07.8]} 22... Nxc3 {[%clk
0:02:31]} 23. Rd2 {[%clk 0:00:56.1]} 23... Na4 {[%clk 0:02:29.6]} 0-1